bitfinex/quotes_BTCUSD_20250303
["timestamp","ask_amount","ask_price","bid_price","bid_amount"]
[1741037658209,0.03445384,86629.0,86628.0,0.15590574]
[1741037660555,0.08152932,86629.0,86628.0,0.07567839]
[1741037660713,0.03445384,86629.0,86628.0,0.07567839]
[1741037661609,0.08040433,86629.0,86628.0,0.07567839]
[1741037661814,0.08040433,86629.0,86627.0,0.08022735]
[1741037662016,0.08040433,86629.0,86628.0,0.07567839]
[1741037662219,0.08040433,86629.0,86624.0,0.07567839]
[1741037662418,0.08040433,86629.0,86628.0,0.07567839]
[1741037662821,0.08040433,86629.0,86624.0,0.07567839]
[1741037663023,0.230872,86628.0,86624.0,0.07567839]
[1741037663274,0.230872,86628.0,86623.0,0.15427839]
[1741037663412,0.31810003,86628.0,86626.0,0.07567839]
[1741037663619,0.31810003,86628.0,86627.0,0.07567839]
[1741037663799,0.31810003,86628.0,86623.0,0.15427839]
[1741037664000,0.31810003,86628.0,86627.0,0.07567839]
[1741037664426,0.31810003,86628.0,86627.0,0.15590574]
[1741037665065,0.03962693,86628.0,86627.0,0.15590574]
[1741037665949,0.03962693,86628.0,86627.0,0.07567839]
[1741037666207,0.0215269,86628.0,86627.0,0.07567839]
[1741037667975,0.0215269,86628.0,86627.0,0.07667839]
[1741037668753,0.0215269,86628.0,86627.0,0.001]
[1741037668976,0.3215269,86628.0,86627.0,0.07667839]
[1741037670002,0.0215269,86628.0,86627.0,0.07667839]
[1741037670205,0.0215269,86628.0,86627.0,0.07567839]
[1741037670719,0.230879,86626.0,86623.0,0.0786]
[1741037671043,0.0215269,86628.0,86627.0,0.07567839]
[1741037671252,0.0215269,86628.0,86627.0,0.07667839]
[1741037672000,0.0215269,86628.0,86627.0,0.15690574]
[1741037672378,0.0215269,86628.0,86627.0,0.15590574]
[1741037672941,0.04595049,86629.0,86628.0,0.07567839]
[1741037673141,0.3,86637.0,86628.0,0.15590574]
[1741037673386,0.3,86637.0,86628.0,0.15634415]
[1741037673794,0.34025499,86637.0,86629.0,0.07567839]
[1741037674389,0.002,86637.0,86633.0,0.08022735]
[1741037675055,0.04187907,86637.0,86633.0,0.08022735]
[1741037675362,0.002,86637.0,86636.0,0.46445574]
[1741037675555,0.002,86637.0,86636.0,0.51395574]
[1741037675702,0.0001698,86674.0,86649.0,0.358016]
[1741037675901,0.04087885,86654.0,86649.0,0.62733839]
[1741037676102,0.04087885,86654.0,86649.0,0.62533839]
[1741037676960,0.02277649,86650.0,86649.0,0.63233839]
[1741037677171,0.02277649,86650.0,86649.0,0.71256574]
[1741037678677,0.04086978,86650.0,86649.0,0.71256574]
[1741037679311,0.04086978,86650.0,86649.0,0.94338174]
[1741037679965,0.3,86674.0,86649.0,0.94338174]
[1741037680166,0.3,86674.0,86660.0,0.07567839]
[1741037680167,0.04034024,86661.0,86660.0,0.07567839]
[1741037680319,0.04034024,86661.0,86660.0,0.15590574]
[1741037680873,0.230752,86673.0,86661.0,0.07567839]
[1741037681268,0.03898931,86673.0,86662.0,0.08022735]
[1741037681625,0.005,86676.0,86671.0,0.08022735]
[1741037681827,0.230751,86674.0,86669.0,0.08022735]
[1741037682035,0.230756,86672.0,86669.0,0.08022735]
[1741037682241,0.230756,86672.0,86665.0,0.15590574]
[1741037682443,0.230771,86666.0,86665.0,0.07567839]
[1741037682669,0.005,86676.0,86665.0,0.07567839]
[1741037683044,0.3,86673.0,86665.0,0.07567839]
[1741037683478,0.3,86673.0,86665.0,0.07367839]
[1741037684011,0.00871661,86674.0,86665.0,0.07367839]
[1741037684225,0.01809178,86672.0,86665.0,0.003]
[1741037684436,0.230771,86666.0,86665.0,0.003]
[1741037684629,0.230771,86666.0,86661.0,0.00043841]
[1741037684630,0.530781,86662.0,86661.0,0.00043841]
[1741037684818,0.230808,86652.0,86651.0,0.42434]
[1741037685015,0.230808,86652.0,86651.0,0.10292229]
[1741037685172,0.530808,86652.0,86651.0,8.229e-05]
[1741037685722,0.54890326,86652.0,86651.0,8.229e-05]
[1741037686090,0.530808,86652.0,86651.0,8.229e-05]
[1741037686713,0.531808,86652.0,86651.0,8.229e-05]
[1741037687321,0.530808,86652.0,86651.0,8.229e-05]
[1741037687488,0.531808,86652.0,86651.0,8.229e-05]
[1741037687887,0.3,86641.0,86631.0,0.0756]
[1741037688143,0.230861,86632.0,86631.0,8.266e-05]
[1741037688648,0.23086,86633.0,86631.0,8.266e-05]
[1741037688826,0.27121434,86632.0,86631.0,8.266e-05]
[1741037689148,0.01809833,86633.0,86631.0,8.266e-05]
[1741037690529,0.01809833,86633.0,86631.0,0.05184334]
[1741037690749,0.01809833,86633.0,86631.0,0.05684334]
[1741037691074,0.01809833,86633.0,86632.0,0.36284903]
[1741037691213,0.01809833,86633.0,86632.0,0.21358803]
[1741037693129,0.01809833,86633.0,86632.0,0.21858803]
[1741037693551,0.01809833,86633.0,86632.0,0.21358803]
[1741037693754,0.01809833,86633.0,86632.0,0.44444903]
[1741037693983,0.01809833,86633.0,86632.0,0.45144903]
[1741037694368,0.01809833,86633.0,86632.0,0.77294903]
[1741037694837,0.01809833,86633.0,86632.0,0.82194903]
[1741037695113,0.0001697,86662.0,86657.0,0.08022735]
[1741037695288,0.0001697,86662.0,86661.0,0.05176068]
[1741037696260,0.0393021,86662.0,86661.0,0.13207069]
[1741037696506,0.0001697,86662.0,86661.0,0.13207069]
[1741037696862,0.04102107,86662.0,86661.0,0.13207069]
[1741037698281,0.05911269,86662.0,86661.0,0.13207069]
[1741037698481,0.01826132,86662.0,86661.0,0.13207069]
[1741037698694,0.0001697,86662.0,86661.0,0.76675469]
[1741037698893,0.0001697,86662.0,86661.0,0.53597069]
[1741037699828,0.0001697,86662.0,86661.0,0.54297069]
[1741037700038,0.0001697,86662.0,86661.0,0.77375469]
[1741037700676,0.0001697,86662.0,86661.0,0.54297069]
[1741037701040,0.0001697,86662.0,86661.0,0.49121001]
[1741037701250,0.0001697,86662.0,86661.0,0.54297069]
[1741037702507,0.0001697,86662.0,86661.0,0.32858266]
[1741037702814,0.24904201,86662.0,86661.0,0.38034334]
[1741037702971,0.54904201,86662.0,86661.0,0.00708266]
[1741037703778,0.54904201,86662.0,86661.0,8.266e-05]
[1741037705248,0.54904201,86662.0,86661.0,0.00608266]
[1741037705649,0.530834,86642.0,86641.0,0.05210008]
[1741037705854,0.530834,86642.0,86641.0,0.1029432]
[1741037706005,0.3,86642.0,86641.0,0.15470388]
[1741037706812,0.3,86642.0,86641.0,0.16170388]
[1741037707014,0.530834,86642.0,86641.0,0.0073832]
[1741037707661,0.3,86642.0,86641.0,0.0073832]
[1741037708006,0.3,86642.0,86641.0,0.08761055]
[1741037708213,0.0001697,86662.0,86654.0,0.08022735]
[1741037708615,0.53081,86651.0,86648.0,0.10256]
[1741037708834,0.530816,86649.0,86648.0,0.10256]
[1741037709184,0.3,86649.0,86648.0,0.10256]
[1741037709748,0.530816,86649.0,86648.0,0.10256]
[1741037710566,0.54891143,86649.0,86648.0,0.10256]
[1741037712213,0.54891143,86649.0,86648.0,0.004]
[1741037712449,0.530816,86649.0,86648.0,0.004]
[1741037712651,0.3,86642.0,86641.0,0.0003832]
[1741037714888,0.3,86642.0,86641.0,0.0033832]
[1741037715103,0.554185,86661.0,86644.0,0.08022735]
[1741037715317,0.23076,86671.0,86655.0,0.13098803]
[1741037715527,0.230729,86682.0,86661.0,0.36177203]
[1741037715729,0.0001697,86687.0,86661.0,0.36177203]
[1741037715730,0.230754,86673.0,86661.0,0.20708803]
[1741037716027,0.230759,86671.0,86661.0,0.20708803]
[1741037716201,0.230762,86670.0,86661.0,0.20708803]
[1741037716403,0.230762,86670.0,86661.0,0.20308803]
[1741037716618,0.27036712,86669.0,86661.0,0.20308803]
[1741037716821,0.230766,86668.0,86661.0,0.20308803]
[1741037717140,0.27036712,86669.0,86661.0,0.20308803]
[1741037717317,0.03960412,86669.0,86661.0,0.20308803]
[1741037717521,0.03960412,86669.0,86661.0,0.24968803]
[1741037717724,0.03960412,86669.0,86661.0,0.80197203]
[1741037717884,0.03960412,86669.0,86661.0,0.57118803]
[1741037718084,0.03960412,86669.0,86661.0,0.57218803]
[1741037720309,0.03960412,86669.0,86661.0,0.80297203]
[1741037721314,0.03960412,86669.0,86661.0,0.57218803]
[1741037721693,0.03960412,86669.0,86661.0,0.80297203]
[1741037722808,0.005,86688.0,86661.0,0.72274468]
[1741037722948,0.230724,86684.0,86661.0,0.80297203]
[1741037723158,0.07280283,86684.0,86661.0,0.80297203]
[1741037723356,0.3,86683.0,86678.0,0.04676068]
[1741037723577,0.3,86679.0,86678.0,0.04676068]
[1741037724083,0.3,86679.0,86678.0,0.20498803]
[1741037724276,0.3,86678.0,86677.0,0.04676068]
[1741037724500,0.530739,86678.0,86677.0,0.04680448]
[1741037725073,0.530739,86678.0,86677.0,4.38e-05]
[1741037726073,0.530739,86678.0,86677.0,0.0010438]
[1741037726262,0.530739,86678.0,86677.0,4.38e-05]
[1741037726603,0.533739,86678.0,86677.0,4.38e-05]
[1741037727900,0.0031696,86678.0,86657.0,0.02880447]
[1741037728096,0.530792,86658.0,86657.0,0.02880447]
[1741037728884,0.230802,86654.0,86653.0,0.10232]
[1741037729070,0.530802,86654.0,86653.0,0.10232]
[1741037729500,0.3,86654.0,86653.0,0.10232]
[1741037730303,0.530802,86654.0,86653.0,0.10232]
[1741037731329,0.3,86651.0,86648.0,5.978e-05]
[1741037731541,0.3,86649.0,86648.0,0.02886425]
[1741037731848,0.3,86649.0,86648.0,0.1090916]
[1741037732052,0.230776,86664.0,86656.0,0.08022735]
[1741037732207,0.230781,86662.0,86656.0,0.10903182]
[1741037732412,0.3,86663.0,86656.0,0.10903182]
[1741037732595,0.3,86663.0,86661.0,0.0798]
[1741037733242,0.530784,86661.0,86660.0,0.02880447]
[1741037733701,0.3,86661.0,86660.0,0.02880447]
[1741037733904,0.3,86661.0,86660.0,0.10903182]
[1741037734309,0.230762,86670.0,86660.0,0.10903182]
[1741037734310,0.530778,86664.0,86663.0,0.08022735]
[1741037734715,0.530778,86664.0,86660.0,0.02880447]
[1741037734716,0.530794,86657.0,86656.0,0.001]
[1741037735544,0.530794,86657.0,86654.0,0.02880447]
[1741037735545,0.5308,86655.0,86654.0,0.02880447]
[1741037735747,0.530804,86654.0,86653.0,0.02880447]
[1741037735971,0.530804,86654.0,86648.0,0.10229978]
[1741037736172,0.530816,86649.0,86648.0,5.978e-05]
[1741037737001,0.73742713,86649.0,86648.0,7.8e-07]
[1741037737325,0.91643978,86649.0,86648.0,7.8e-07]
[1741037737527,0.530834,86642.0,86641.0,1.8e-07]
[1741037737676,0.530834,86642.0,86641.0,4.615e-05]
[1741037737871,0.3,86641.0,86612.0,0.10206882]
[1741037738076,0.230912,86613.0,86612.0,0.10220025]
[1741037738736,0.3,86614.0,86612.0,0.10220025]
[1741037738737,0.3,86614.0,86612.0,0.1824276]
[1741037739282,0.23087,86629.0,86618.0,0.08022735]
[1741037739604,0.3,86628.0,86618.0,0.08022735]
[1741037740004,0.3,86628.0,86627.0,0.08022735]
[1741037740210,0.3,86628.0,86627.0,0.12982735]
[1741037740613,0.3234,86656.0,86633.0,0.08022735]
[1741037740831,0.01977265,86672.0,86636.0,0.08022735]
[1741037740832,0.230831,86644.0,86636.0,0.08022735]
[1741037741031,0.52475627,86668.0,86636.0,0.08022735]
[1741037741364,0.3,86638.0,86636.0,0.08022735]
[1741037741555,0.530845,86638.0,86636.0,0.08022735]
[1741037741819,0.3,86638.0,86636.0,0.08022735]
[1741037742269,0.230848,86637.0,86636.0,0.08022735]
[1741037742753,0.230841,86640.0,86636.0,0.08222735]
[1741037743201,0.230841,86640.0,86636.0,0.08022735]
[1741037743445,0.230836,86642.0,86636.0,0.08022735]
[1741037743691,0.230831,86644.0,86636.0,0.08022735]
[1741037744185,0.230832,86643.0,86636.0,0.08022735]
[1741037744391,0.230843,86639.0,86636.0,0.08022735]
[1741037744526,0.230848,86637.0,86636.0,0.001]
[1741037745003,0.230848,86637.0,86634.0,0.08022735]
[1741037745222,0.23084,86640.0,86636.0,0.08022735]
[1741037745223,0.3,86639.0,86636.0,0.08022735]
[1741037745432,0.23085,86636.0,86635.0,0.08022735]
[1741037745627,0.3,86639.0,86635.0,0.08022735]
[1741037745876,0.230847,86638.0,86635.0,0.08022735]
[1741037746073,0.3,86639.0,86635.0,0.08022735]
[1741037746254,0.230845,86638.0,86635.0,0.08022735]
[1741037746455,0.23085,86637.0,86635.0,0.08022735]
[1741037746677,0.3,86639.0,86635.0,0.08022735]
[1741037747407,0.3,86639.0,86636.0,0.08022735]
[1741037748254,0.3234,86669.0,86637.0,0.0825]
[1741037748451,0.230825,86646.0,86637.0,0.0825]
[1741037748735,0.3,86645.0,86637.0,0.0825]
[1741037748873,0.2378234,86645.0,86637.0,0.0825]
[1741037749210,0.230837,86642.0,86637.0,0.0825]
[1741037749433,0.23084,86640.0,86637.0,0.0825]
[1741037749589,0.2378234,86645.0,86637.0,0.0825]
[1741037749788,0.001,86646.0,86637.0,0.0825]
[1741037751293,0.3,86645.0,86637.0,0.0825]
[1741037751498,0.3,86645.0,86637.0,0.16272735]
[1741037751691,0.3,86645.0,86639.0,0.08022735]
[1741037752529,0.3,86648.0,86639.0,0.08022735]
[1741037752646,0.53082,86648.0,86639.0,0.08022735]
[1741037752848,0.53082,86648.0,86639.0,0.08035878]
[1741037754072,0.3,86649.0,86639.0,0.08035878]
[1741037754494,0.3,86649.0,86639.0,0.08135878]
[1741037754806,0.3,86649.0,86648.0,0.08022735]
[1741037755007,0.230792,86658.0,86649.0,0.08022735]
[1741037755150,0.3,86658.0,86649.0,0.07922735]
[1741037755352,0.3,86658.0,86656.0,0.07922735]
[1741037755800,0.3,86658.0,86656.0,0.16012735]
[1741037756198,0.3,86658.0,86656.0,0.15912735]
[1741037756372,0.230789,86659.0,86656.0,0.15912735]
[1741037756602,0.3,86660.0,86656.0,0.15912735]
[1741037757171,0.005,86688.0,86656.0,0.49192435]
[1741037757774,0.2309086,86678.0,86656.0,0.49392435]
[1741037757977,0.0001696,86678.0,86656.0,0.81542435]
[1741037758544,0.0001696,86678.0,86656.0,0.81342435]
[1741037758746,0.0001696,86678.0,86656.0,0.81842435]
[1741037759098,0.2309086,86678.0,86656.0,0.81342435]
[1741037759391,0.3,86677.0,86656.0,0.81342435]
[1741037759599,0.230744,86676.0,86656.0,0.82042435]
[1741037759796,0.230749,86674.0,86656.0,0.58962735]
[1741037759995,0.230744,86676.0,86656.0,0.58962735]
[1741037760219,0.230768,86667.0,86656.0,0.58962735]
[1741037760436,0.230753,86673.0,86656.0,0.58958735]
[1741037760640,0.230781,86663.0,86656.0,0.58958735]
[1741037760842,0.230756,86672.0,86656.0,0.58958735]
[1741037761061,0.230773,86666.0,86656.0,0.58258735]
[1741037761204,0.230773,86665.0,86656.0,0.58958735]
[1741037761408,0.230781,86663.0,86656.0,0.58958735]
[1741037761644,0.230772,86666.0,86656.0,0.58958735]
[1741037761863,0.230778,86664.0,86656.0,0.58258735]
[1741037762023,0.230778,86664.0,86656.0,0.58958735]
[1741037762228,0.230778,86664.0,86656.0,0.26808735]
[1741037762229,0.230781,86662.0,86656.0,0.26808735]
[1741037762667,0.0001696,86678.0,86656.0,0.49188435]
[1741037762823,0.0001696,86678.0,86656.0,0.26108735]
[1741037763045,0.530764,86669.0,86656.0,0.26808735]
[1741037763241,0.3,86669.0,86656.0,0.26808735]
[1741037763561,0.0001696,86678.0,86656.0,0.26808735]
[1741037763562,0.3,86663.0,86656.0,0.26808735]
[1741037763763,0.5309636,86657.0,86656.0,0.08522735]
[1741037764142,0.3001696,86657.0,86656.0,0.08522735]
[1741037764348,0.0001696,86657.0,86656.0,0.39552435]
[1741037764681,0.0001696,86657.0,86656.0,0.38852435]
[1741037764887,0.0001696,86657.0,86656.0,0.15772735]
[1741037765048,0.0001696,86657.0,86656.0,0.16472735]
[1741037765461,0.0001696,86657.0,86656.0,0.15772735]
[1741037765865,0.0001696,86657.0,86656.0,0.16472735]
[1741037767205,0.0001696,86657.0,86656.0,0.39552435]
[1741037768193,0.0001696,86657.0,86656.0,0.71702435]
[1741037768367,0.00230877,86688.0,86677.0,0.07822735]
[1741037768796,0.00230877,86688.0,86684.0,0.07822735]
[1741037768994,0.00230877,86688.0,86687.0,0.07822735]
[1741037769338,0.3,86685.0,86684.0,0.07822735]
[1741037769690,0.53072,86685.0,86684.0,0.07822735]
[1741037769992,0.530723,86684.0,86683.0,0.07822735]
[1741037770398,0.530723,86684.0,86678.0,0.0795]
[1741037770399,0.530736,86679.0,86678.0,0.0795]
[1741037770595,0.3,86679.0,86678.0,0.15772735]
[1741037771776,0.3,86679.0,86678.0,0.07822735]
[1741037772220,0.3,86679.0,86677.0,0.14904]
[1741037772221,0.3,86678.0,86677.0,0.22726735]
[1741037772427,0.00270519,86688.0,86687.0,0.07822735]
[1741037773003,0.00270519,86688.0,86687.0,0.15422735]
[1741037773227,0.00270519,86688.0,86687.0,0.38494235]
[1741037773381,0.00270519,86688.0,86687.0,0.15422735]
[1741037773786,0.23341719,86688.0,86687.0,0.07822735]
[1741037774085,0.00270519,86688.0,86687.0,0.07822735]
[1741037775142,0.23341719,86688.0,86687.0,0.07822735]
[1741037775691,0.00270519,86688.0,86687.0,0.07822735]
[1741037775893,0.00270519,86688.0,86687.0,0.08226735]
[1741037776101,0.53341719,86688.0,86687.0,0.00404]
[1741037777022,0.53358679,86688.0,86687.0,0.00404]
[1741037777445,0.2308816,86688.0,86687.0,4e-05]
[1741037777849,0.2308816,86688.0,86687.0,0.00204]
[1741037778559,0.0001696,86688.0,86687.0,0.08026735]
[1741037778769,0.0001696,86688.0,86687.0,0.12916735]
[1741037778988,0.0001696,86688.0,86687.0,0.35988235]
[1741037779142,0.0001696,86688.0,86687.0,0.12916735]
[1741037780160,0.0001696,86688.0,86687.0,0.35988235]
[1741037780669,0.0001696,86688.0,86687.0,0.12916735]
[1741037781038,0.0001696,86688.0,86687.0,0.12716735]
[1741037781581,0.0001696,86688.0,86687.0,0.13116735]
[1741037781954,0.0001696,86688.0,86687.0,0.12716735]
[1741037782151,0.0001696,86688.0,86687.0,0.36388235]
[1741037782717,0.0001696,86688.0,86687.0,0.67938235]
[1741037783081,0.0001696,86688.0,86687.0,0.76678235]
[1741037784363,7e-05,86697.0,86696.0,0.44011835]
[1741037784564,7e-05,86697.0,86696.0,0.86338978]
[1741037784961,7e-05,86697.0,86696.0,1.40368978]
[1741037785161,0.004,86701.0,86700.0,0.36188]
[1741037785837,0.004,86701.0,86700.0,0.44010735]
[1741037786266,0.004,86701.0,86700.0,0.76160735]
[1741037786468,0.004,86701.0,86700.0,0.76860735]
[1741037787066,0.004,86701.0,86700.0,0.08522735]
[1741037787067,0.534677,86701.0,86700.0,0.08522735]
[1741037787243,0.304,86701.0,86700.0,0.08522735]
[1741037787647,0.004,86701.0,86700.0,0.31590735]
[1741037787965,0.004,86701.0,86700.0,0.71910735]
[1741037788224,0.004,86701.0,86700.0,0.71210735]
[1741037788412,0.004,86701.0,86700.0,0.76110735]
[1741037788971,0.004,86701.0,86700.0,0.75710735]
[1741037789290,0.004,86701.0,86700.0,0.76410735]
[1741037789747,0.0041696,86701.0,86700.0,0.76410735]
[1741037789941,6e-07,86701.0,86700.0,0.76410735]
[1741037790118,6e-07,86701.0,86700.0,1.30440735]
[1741037790311,6e-07,86701.0,86700.0,1.32560248]
[1741037791464,0.0128809,86717.0,86713.0,0.43497235]
[1741037792672,0.0128809,86717.0,86713.0,0.43997235]
[1741037793155,0.0128809,86717.0,86713.0,0.46116748]
[1741037793552,0.0128809,86717.0,86713.0,0.65354248]
[1741037793758,0.2435159,86717.0,86713.0,0.17982248]
[1741037793958,0.235643,86714.0,86713.0,0.20094248]
[1741037794165,0.235643,86714.0,86713.0,0.18674735]
[1741037794166,0.005,86714.0,86713.0,0.18674735]
[1741037794585,0.005,86714.0,86713.0,0.17974735]
[1741037794915,0.005,86714.0,86713.0,0.18574735]
[1741037795264,0.23554534,86714.0,86713.0,0.18574735]
[1741037795465,0.00490234,86714.0,86713.0,0.17974735]
[1741037795784,0.00490234,86714.0,86713.0,0.18574735]
[1741037796797,0.23554534,86714.0,86713.0,0.18574735]
[1741037797005,0.230653,86710.0,86709.0,0.07822735]
[1741037797205,0.00490234,86714.0,86709.0,0.07822735]
[1741037797370,0.00490234,86714.0,86713.0,0.006]
[1741037798038,0.530645,86713.0,86712.0,0.07822735]
[1741037798645,0.530653,86710.0,86709.0,0.004]
[1741037798877,0.3,86699.0,86696.0,0.07835878]
[1741037799010,0.230685,86698.0,86697.0,0.10144]
[1741037799732,0.230685,86698.0,86696.0,0.00013143]
[1741037799733,0.230688,86697.0,86696.0,0.00013143]
[1741037800406,0.3,86699.0,86696.0,0.07835878]
[1741037800646,0.3,86699.0,86698.0,0.07822735]
[1741037800855,0.3,86699.0,86696.0,0.00013143]
[1741037800856,0.3,86705.0,86703.0,0.07822735]
[1741037801062,0.3,86715.0,86704.0,0.07822735]
[1741037801063,0.23065,86712.0,86704.0,0.07822735]
[1741037801260,0.530659,86708.0,86707.0,0.07822735]
[1741037802171,0.3,86707.0,86706.0,0.07822735]
[1741037802349,0.230687,86698.0,86696.0,0.00013143]
[1741037802546,0.230688,86697.0,86696.0,0.07835878]
[1741037803102,0.3,86699.0,86698.0,0.07822735]
[1741037803429,0.230688,86697.0,86696.0,0.00013143]
[1741037804977,0.230688,86697.0,86696.0,0.00513143]
[1741037805179,0.530688,86697.0,86696.0,0.00513143]
[1741037807908,0.530688,86697.0,86696.0,0.00013143]
[1741037808238,0.530688,86697.0,86696.0,0.00313143]
[1741037812956,0.3,86698.0,86696.0,0.00313143]
[1741037813116,0.230688,86697.0,86696.0,0.00313143]
[1741037813927,0.230688,86697.0,86696.0,0.00013143]
[1741037814265,0.23068,86701.0,86696.0,0.00347103]
[1741037814460,0.230681,86700.0,86696.0,0.00347103]
[1741037814709,0.230681,86700.0,86696.0,0.00047103]
[1741037814932,0.230688,86697.0,86696.0,0.00051103]
[1741037815155,0.230688,86697.0,86696.0,0.00351103]
[1741037815387,0.3,86697.0,86696.0,0.00351103]
[1741037815611,0.530688,86697.0,86696.0,0.00051103]
[1741037815800,0.3,86697.0,86696.0,0.00051103]
[1741037816429,0.530688,86697.0,86696.0,0.00051103]
[1741037816896,0.530688,86697.0,86696.0,0.00251103]
[1741037817316,0.530688,86697.0,86696.0,0.00051103]
[1741037817485,0.3,86697.0,86696.0,0.00051103]
[1741037817689,0.0236,86729.0,86708.0,0.07822735]
[1741037817909,0.230653,86711.0,86708.0,0.07622735]
[1741037818091,0.230656,86709.0,86708.0,0.07622735]
[1741037818292,0.230648,86712.0,86708.0,0.07622735]
[1741037818507,0.3,86724.0,86712.0,0.07622735]
[1741037818708,0.3,86715.0,86712.0,0.07622735]
[1741037818908,0.230606,86728.0,86712.0,0.07622735]
[1741037819155,0.3128809,86717.0,86712.0,0.15282735]
[1741037819490,0.5435169,86717.0,86712.0,0.15282735]
[1741037819887,0.0128809,86717.0,86712.0,0.38347535]
[1741037820393,0.0128809,86717.0,86712.0,0.42987535]
[1741037820889,0.0128809,86717.0,86712.0,0.19922735]
[1741037821124,0.0128809,86717.0,86712.0,0.42987535]
[1741037821655,0.230598,86731.0,86720.0,0.230625]
[1741037821991,0.230598,86731.0,86721.0,0.230623]
[1741037822309,0.230598,86731.0,86712.0,0.52072735]
[1741037822310,0.230568,86742.0,86741.0,0.07622735]
[1741037822714,0.530568,86742.0,86741.0,0.07622735]
[1741037822915,0.005,86751.0,86744.0,0.04822735]
[1741037823069,0.235547,86751.0,86744.0,0.04822735]
[1741037823278,0.235547,86751.0,86736.0,0.0463]
[1741037823279,0.235544,86751.0,86750.0,0.04822735]
[1741037823659,0.235544,86751.0,86750.0,0.04835878]
[1741037823856,0.235544,86751.0,86750.0,0.00013143]
[1741037826313,0.23544637,86751.0,86750.0,0.00013143]
[1741037827208,0.29477242,86752.0,86750.0,0.00013143]
[1741037827371,0.230544,86751.0,86750.0,0.00013143]
[1741037827572,0.2307138,86751.0,86750.0,0.00013143]
[1741037827962,0.230584,86736.0,86733.0,0.10124]
[1741037828161,0.23059,86734.0,86733.0,0.13866302]
[1741037828956,0.23059,86734.0,86733.0,0.10130425]
[1741037829157,0.230584,86736.0,86733.0,6.425e-05]
[1741037829368,0.23059,86734.0,86733.0,6.425e-05]
[1741037829905,0.53059,86734.0,86733.0,6.425e-05]
[1741037830500,0.53059,86734.0,86733.0,0.00406425]
[1741037831020,0.53059,86734.0,86733.0,6.425e-05]
[1741037831216,0.53059,86734.0,86733.0,0.00106425]
[1741037833856,0.23059,86734.0,86733.0,0.00106425]
[1741037834096,0.0001698,86751.0,86739.0,0.03735877]
[1741037834337,0.345821,86750.0,86737.0,0.03735877]
[1741037834549,0.530579,86738.0,86735.0,0.03735877]
[1741037834725,0.530579,86738.0,86733.0,6.425e-05]
[1741037834726,0.23059,86734.0,86733.0,6.425e-05]
[1741037834926,0.53059,86734.0,86733.0,0.00106425]
[1741037836005,0.53059,86734.0,86733.0,6.425e-05]
[1741037836227,0.53059,86734.0,86733.0,0.03742302]
[1741037837161,0.53059,86734.0,86733.0,0.00206425]
[1741037839332,0.53059,86734.0,86733.0,6.425e-05]
[1741037839562,0.53059,86734.0,86733.0,0.00106425]
[1741037841414,0.230579,86739.0,86738.0,0.03735877]
[1741037841837,0.2307427,86741.0,86737.0,0.0485]
[1741037841838,0.2307427,86741.0,86740.0,0.03735877]
[1741037842106,0.0001697,86741.0,86740.0,0.03735877]
[1741037843300,0.0001697,86741.0,86740.0,0.04235877]
[1741037843649,0.2307407,86741.0,86740.0,0.04235877]
[1741037844092,0.0001697,86741.0,86740.0,0.04235877]
[1741037844493,0.0001697,86741.0,86740.0,0.67303277]
[1741037844875,0.0001697,86741.0,86740.0,0.4051]
[1741037845081,0.0001697,86741.0,86740.0,0.67303277]
[1741037845486,0.0001697,86741.0,86740.0,0.66803277]
[1741037845690,0.0001697,86741.0,86740.0,0.67503277]
[1741037846071,0.0001697,86741.0,86740.0,0.66803277]
[1741037846601,0.0001697,86741.0,86740.0,0.67503277]
[1741037847170,0.0001697,86741.0,86740.0,0.66803277]
[1741037848471,0.0001697,86741.0,86740.0,0.44445877]
[1741037848828,0.0001697,86741.0,86740.0,0.43745877]
[1741037849244,0.0001697,86741.0,86740.0,0.44445877]
[1741037849472,0.2307407,86741.0,86740.0,0.44445877]
[1741037849642,0.2307407,86741.0,86740.0,0.43745877]
[1741037850066,0.2307407,86741.0,86740.0,0.44445877]
[1741037850752,0.0001697,86741.0,86740.0,0.44445877]
[1741037851153,0.0001697,86741.0,86740.0,0.67503277]
[1741037851570,0.0001697,86741.0,86740.0,0.66803277]
[1741037851907,0.0001697,86741.0,86740.0,0.67503277]
[1741037852594,0.0001697,86741.0,86740.0,0.43745877]
[1741037852809,0.0001697,86741.0,86740.0,0.44445877]
[1741037853009,0.2307407,86741.0,86740.0,0.44445877]
[1741037853210,0.0001697,86741.0,86740.0,0.43745877]
[1741037853792,0.0001697,86741.0,86740.0,0.66803277]
[1741037853987,0.0001697,86741.0,86740.0,0.43745877]
[1741037854501,0.0001697,86741.0,86740.0,0.66803277]
[1741037854690,0.0001697,86741.0,86740.0,0.67503277]
[1741037855312,0.0001697,86741.0,86740.0,0.66803277]
[1741037855512,0.0001697,86741.0,86740.0,0.67503277]
[1741037856205,0.0001697,86741.0,86740.0,0.66803277]
[1741037856418,0.0001697,86741.0,86740.0,0.67503277]
[1741037857910,0.0001697,86741.0,86740.0,0.66803277]
[1741037858072,0.0001697,86741.0,86740.0,0.67503277]
[1741037858819,0.0001697,86741.0,86740.0,0.66803277]
[1741037859013,0.2307407,86741.0,86740.0,0.44445877]
[1741037859368,0.0001697,86741.0,86740.0,0.44445877]
[1741037859961,0.0001697,86741.0,86740.0,0.67503277]
[1741037861530,0.0001697,86741.0,86740.0,0.44445877]
[1741037862282,0.2307407,86741.0,86740.0,0.44445877]
[1741037862693,0.2307407,86741.0,86740.0,0.36585877]
[1741037866362,0.2307407,86741.0,86740.0,0.04435877]
[1741037867622,0.0001697,86741.0,86740.0,0.04435877]
[1741037867877,0.2307407,86741.0,86740.0,0.04435877]
[1741037871365,0.0001697,86741.0,86740.0,0.04435877]
[1741037871532,0.230571,86741.0,86740.0,0.03735877]
[1741037871941,0.230571,86741.0,86740.0,0.04435877]
[1741037877389,0.2302377,86742.0,86741.0,0.03735877]
[1741037877571,0.230558,86746.0,86745.0,0.03735877]
[1741037880483,0.230568,86742.0,86741.0,0.13795877]
[1741037881095,0.230568,86742.0,86741.0,0.1006]
[1741037882761,0.230568,86742.0,86741.0,0.1076]
[1741037883344,0.230568,86742.0,86741.0,0.1006]
[1741037883470,0.230568,86742.0,86741.0,0.13795877]
[1741037883680,0.230568,86742.0,86741.0,0.14195877]
[1741037884663,0.230568,86742.0,86741.0,0.13795877]
[1741037884893,0.2307138,86751.0,86750.0,0.03735877]